[Event "Romanian Team Blitz Open 2022"]
[Site "Sebes"]
[Date "2022.12.04"]
[Round "4.12"]
[White "Craciun, Sasha-Matei"]
[Black "Talu, Mircea"]
[Result "1/2-1/2"]
[ECO "B06"]
[WhiteElo "2001"]
[BlackElo "2327"]
[Annotator "TA"]
[PlyCount "113"]
[EventDate "2022.12.04"]
[EventType "blitz"]
[EventCountry "ROU"]
[SourceTitle "playchess.com"]
[Source "ChessBase"]
[SourceQuality "1"]
[TimeControl "180+2"]

{[%evp 9,113,7,20,0,0,0,0,0,0,-3,0,-22,-7,-20,-16,-24,-17,-36,-29,-29,4,-1,2,-74,0,0,-6,-7,15,-14,12,25,141,27,45,31,31,23,30,29,50,-32,-16,-44,-33,-89,-85,-116,-43,-48,-47,-48,-49,-76,-27,-31,-35,-36,-15,-37,-35,-44,-38,-39,-34,-35,-25,-25,-15,-25,-25,-39,-22,-25,-22,-29,-29,-29,-22,-22,-22,-25,-16,-16,0,-16,0,0,0,-8,0,0,0,0,0,-13,-8,-8,97,97,2214,1035,1506,437,397,358]} 1. e4 {[%emt 0:00:03]} g6 {[%emt 0:00:01]} 2. d4 {[%emt 0:00:01]} Bg7 {[%emt 0:00:02]} 3. Nf3 {[%emt 0:00:03]} c6 {[%emt 0:00:01]} 4. g3 {[%emt 0:00:08]} d5 {[%emt 0:00:03]} 5. e5 {[%emt 0:00:03]} f6 {[%emt 0:00:07] [#]} 6. exf6 $146 {[%emt 0:00:05] B06: Modern Defence.} ({Predecessor:} 6. Bg2 Bg4 7. exf6 exf6 8. O-O Ne7 9. Be3 O-O 10. Qd2 Re8 11. h3 Bxf3 12. Bxf3 {0-1 (41) Gabanoudis-Divaris,K Heraklion 2001}) 6... exf6 {[%emt 0:00:03]} 7. Bg2 {[%emt 0:00:03]} Ne7 {[%emt 0:00:04]} 8. O-O {[%emt 0:00:02] The position is equal.} O-O {[%emt 0:00:03]} 9. Re1 {[%emt 0:00:06]} Re8 {[%emt 0:00:04]} 10. Bf4 {[%emt 0:00:04]} Nd7 {[%emt 0:00:03][%cal Bb8d7,Bd7f8,Bf8g6][%mdl 32]} 11. Nc3 {[%emt 0:00:05]} Nf8 {[%emt 0:00:06]} 12. a4 {[%emt 0:00:29]} g5 {[%emt 0:00:29]} 13. Bd2 {[%emt 0:00:07]} Nfg6 {[%emt 0:00:04]} 14. h3 {[%emt 0:00:09]} h5 {[%emt 0:00:16]} 15. Nh2 {[%emt 0:00:14]} h4 $1 {[%emt 0:00:06]} 16. Qh5 {[%emt 0:00:32]} (16. g4 $11) 16... Kf7 {[%emt 0:00:25]} (16... hxg3 $17 17. fxg3 Bf5) 17. Qf3 $11 {[%emt 0:00:01]} hxg3 18. fxg3 {[%emt 0:00:01]} Nf5 {[%emt 0:01:01]} 19. Qf2 {[%emt 0:00:17]} (19. Rxe8 {is more complex.} Qxe8 20. Re1 Nxd4 21. Qf2) 19... Rxe1+ {[%emt 0:00:30]} 20. Rxe1 {[%emt 0:00:00]} Bd7 {[%emt 0:00:04] [#]} (20... Kg8 $11 {keeps the balance.}) 21. g4 {[%emt 0:00:14] White is more active.} ({White should play} 21. Nxd5 $1 $16 {[%cal Og2e4][%mdl 512] Be4! is the strong threat.} Kg8 (21... Be6 22. c4) 22. Nb4) 21... Nfh4 $1 {[%emt 0:00:01]} 22. Bxg5 {[%emt 0:00:06]} Nxg2 {[%emt 0:00:02]} 23. Kxg2 {[%emt 0:00:01]} Kg8 {[%emt 0:00:06]} 24. Bd2 {[%emt 0:00:03]} f5 $1 {[%emt 0:00:02] Against h4} 25. gxf5 {[%emt 0:00:11] [#]} (25. g5 $14) 25... Bxf5 $1 $15 {[%emt 0:00:02][%mdl 64]} 26. Kh1 {[%emt 0:00:05]} (26. Qg3 Qb6) 26... Qf6 {[%emt 0:00:03]} 27. Rf1 {[%emt 0:00:06]} ({Better is} 27. Ng4 $1 $15 Bxg4 28. Qxf6 Bxf6 29. hxg4) 27... Rf8 $17 {[%emt 0:00:01]} (27... Qxd4 $2 28. Qxf5 Qxd2 29. Qxg6 $18) 28. Ne2 {[%emt 0:00:13]} Bxh3 {[%emt 0:00:03] This pair of bishops is nice.} (28... Qe7 $17 29. Qe3 Qxe3 30. Bxe3 Bxc2 31. Rxf8+ Bxf8) 29. Qxf6 $15 {[%emt 0:00:02]} Rxf6 {[%emt 0:00:02]} 30. Rxf6 {[%emt 0:00:01]} Bxf6 {[%emt 0:00:01]} 31. Kg1 {[%emt 0:00:05]} Nh4 {[%emt 0:00:02]} (31... Bf5 $17 32. c3 a5) 32. Kf2 {[%emt 0:00:03]} Bf5 {[%emt 0:00:01]} 33. c3 {[%emt 0:00:02]} b6 {[%emt 0:00:01]} 34. Nf4 {[%emt 0:00:06]} Kf7 {[%emt 0:00:03]} 35. Nf1 {[%emt 0:00:05]} Bc2 {[%emt 0:00:01]} 36. a5 {[%emt 0:00:01]} bxa5 {[%emt 0:00:01]} 37. Ne3 {[%emt 0:00:04]} Be4 {[%emt 0:00:02]} 38. Ng4 {[%emt 0:00:01]} Nf5 {[%emt 0:00:02]} 39. Nxf6 Kxf6 $11 {[%emt 0:00:01][%mdl 4096] Endgame KBN-KBN} 40. Nh5+ {[%emt 0:00:13]} Kf7 {[%emt 0:00:02]} 41. Bf4 {[%emt 0:00:02]} Bc2 {[%emt 0:00:02]} 42. Bc7 {[%emt 0:00:01]} a4 {[%emt 0:00:01]} 43. Nf4 {[%emt 0:00:02]} a6 {[%emt 0:00:02]} 44. Ke2 {[%emt 0:00:02]} Ke7 {[%emt 0:00:01]} 45. Kd2 {[%emt 0:00:01]} Bb3 {[%emt 0:00:02]} 46. Nd3 {[%emt 0:00:01]} Nd6 {[%emt 0:00:03]} 47. Nc5 {[%emt 0:00:03]} Nc4+ {[%emt 0:00:01]} 48. Kc1 {[%emt 0:00:01]} a5 {[%emt 0:00:04]} 49. Bf4 {[%emt 0:00:05]} Kf6 {[%emt 0:00:02]} 50. Bg3 {[%emt 0:00:02]} Kf5 {[%emt 0:00:03]} 51. Nd3 {[%emt 0:00:04]} Ke4 {[%emt 0:00:02]} 52. Ne5 {[%emt 0:00:01]} a3 {[%emt 0:00:03]} (52... Nxe5 {simplifies} 53. Bxe5 Kd3 54. Bd6 Bc4) 53. bxa3 {[%emt 0:00:01][%mdl 64] Remove Defender, Deflection} Nxa3 {[%emt 0:00:02]} (53... Nxe5 $11 {remains equal.} 54. dxe5 Kf5) 54. Kb2 $1 $16 {[%emt 0:00:01]} ({But not} 54. Nxc6 $6 a4 $11) 54... a4 $2 {[%emt 0:00:08][%mdl 8192]} 55. Kxa3 $18 {[%emt 0:00:01]} c5 {[%emt 0:00:02]} 56. Nc6 {[%emt 0:00:02]} (56. dxc5 $142 d4 57. cxd4) 56... cxd4 {[%emt 0:00:02]} 57. cxd4 {[%emt 0:00:01][%mdl 32768] Weighted Error Value: White=0.33/Black=0.20 (precise) . An unexpected result.} ({Much less strong is} 57. Nxd4 Bd1 58. Nb5 Kf5 59. Nd6+ Kg5) 1/2-1/2

[Event "Romanian Team Blitz Open 2022"]
[Site "Sebes"]
[Date "2022.12.04"]
[Round "4.13"]
[White "Szabo, Gergely-Andras-Gyula"]
[Black "Soltanici, Ruslan"]
[Result "0-1"]
[ECO "B53"]
[WhiteElo "2514"]
[BlackElo "2357"]
[Annotator "TA"]
[PlyCount "99"]
[EventDate "2022.12.04"]
[EventType "blitz"]
[EventCountry "ROU"]
[SourceTitle "playchess.com"]
[Source "ChessBase"]
[SourceQuality "1"]
[TimeControl "180+2"]

{[%evp 14,99,22,10,18,6,13,3,36,0,20,0,0,0,0,0,0,0,13,29,12,-17,-13,-58,-90,-70,-79,-111,-112,-105,-113,-137,-114,-160,-151,-159,-152,-189,-202,-214,-185,-222,-220,-222,-206,-232,-232,-264,0,-195,-195,-179,-115,-293,-293,-294,-293,-293,-293,-293,-285,-285,-269,-303,-225,-247,-170,-202,-154,-162,-143,-150,-65,-108,-108,-106,-108,-106,-106,-202,-196,-227,-223,-249,-220,-225,-195,-204]} 1. e4 {[%emt 0:00:01]} c5 {[%emt 0:00:01]} 2. Nf3 {[%emt 0:00:01]} d6 {[%emt 0:00:05]} 3. d4 {[%emt 0:00:01]} cxd4 {[%emt 0:00:01]} 4. Qxd4 {[%emt 0:00:02]} Nc6 {[%emt 0:00:02]} 5. Bb5 {[%emt 0:00:01]} Bd7 {[%emt 0:00:00]} 6. Bxc6 {[%emt 0:00:01]} Bxc6 {[%emt 0:00:02]} 7. Nc3 {[%emt 0:00:01]} h6 {[%emt 0:00:01]} 8. Be3 {[%emt 0:00:10]} e5 {[%emt 0:00:02] B53: Sicilian: 2...d6: Lines with Qxd4.} 9. Qd3 {[%emt 0:00:05]} Nf6 {[%emt 0:00:01]} 10. O-O-O {[%emt 0:00:08]} Qd7 {[%emt 0:00:01] The position is equal.} 11. Nd2 {[%emt 0:00:20]} b5 {[%emt 0:00:01]} 12. Nd5 {[%emt 0:00:03]} Bxd5 13. exd5 {[%emt 0:00:01]} Be7 {[%emt 0:00:35]} 14. f3 {[%emt 0:00:05]} Qb7 {[%emt 0:00:50]} 15. Ne4 {[%emt 0:00:02] [#]} Rc8 $146 {[%emt 0:00:14]} ({Predecessor:} 15... Nxe4 16. fxe4 b4 17. Kb1 a5 18. g4 Bg5 19. h4 Bxe3 20. Qxe3 Rc8 21. g5 Qc7 {0-1 (29) Vrana,J (2306)-Zakhartsov,V (2578) Pardubice 2011}) 16. Kb1 {[%emt 0:00:22]} a5 {[%emt 0:00:03]} 17. g4 {[%emt 0:00:27]} Nxe4 {[%emt 0:00:05]} 18. Qxe4 {[%emt 0:00:05]} Rc4 {[%emt 0:00:14] Against h4} 19. Qd3 {[%emt 0:00:06]} Bg5 {[%emt 0:00:02]} 20. Bxg5 {[%emt 0:00:11]} hxg5 {[%emt 0:00:01]} 21. Qf5 {[%emt 0:00:01]} Qe7 {[%emt 0:00:07]} 22. b3 {[%emt 0:00:07]} Rc5 {[%emt 0:00:02]} 23. Rd3 {[%emt 0:00:15]} (23. Qd3 $142) 23... g6 $17 {[%emt 0:00:01]} 24. Qe4 {[%emt 0:00:01]} Kf8 {[%emt 0:00:03]} 25. Rd2 {[%emt 0:00:33]} Kg7 {[%emt 0:00:02]} 26. Rf2 {[%emt 0:00:02]} Qf6 {[%emt 0:00:02]} 27. Rd1 {[%emt 0:00:04]} b4 {[%emt 0:00:09]} 28. Rd3 {[%emt 0:00:03]} Rhc8 {[%emt 0:00:07]} 29. Qe3 {[%emt 0:00:04]} Rc3 {[%emt 0:00:04]} 30. Rfd2 {[%emt 0:00:04]} R3c5 {[%emt 0:00:02][%cal Oa5a4]} 31. Rf2 $1 {[%emt 0:00:01]} a4 {[%emt 0:00:06]} 32. bxa4 {[%emt 0:00:03][%cal Oh2h4]} Ra8 {[%emt 0:00:01]} (32... Qd8 $19 {Threatens to win with ...Ra5.} 33. Rb3 Rc3) 33. Rb3 $2 {[%emt 0:00:07] [#]} (33. h4 $17 {was forced.} Qd8 34. hxg5) 33... Rxa4 $19 {[%emt 0:00:03]} ({Stronger than} 33... Rxd5 34. Rxb4 Rd1+ 35. Kb2 $17) 34. Rd2 {[%emt 0:00:03]} Rca5 {[%emt 0:00:03]} 35. c3 {[%emt 0:00:03]} bxc3 {[%emt 0:00:06]} 36. Rxc3 {[%emt 0:00:02]} Rb4+ {[%emt 0:00:09]} 37. Rb3 {[%emt 0:00:01]} Rc4 {[%emt 0:00:09]} 38. Rc3 {[%emt 0:00:01]} Rca4 {[%emt 0:00:08]} 39. Rb3 {[%emt 0:00:10]} e4 {[%emt 0:00:05]} 40. Qc3 {[%emt 0:00:07]} exf3 {[%emt 0:00:02] Hoping for ...Qxc3.} 41. Qxf6+ {[%emt 0:00:02]} Kxf6 {[%emt 0:00:01]} 42. Rxf3+ {[%emt 0:00:01][%mdl 4096] Endgame KRR-KRR} Kg7 {[%emt 0:00:05]} ({Better is} 42... Rf4 $17 43. Rg3 Rb4+ 44. Kc1 Rba4 45. Rf2+ Rf4) 43. Rdf2 {[%emt 0:00:05]} Ra7 {[%emt 0:00:01]} ({But not} 43... Rxg4 $6 44. Rxf7+ Kh6 45. Rd2 $15) 44. h3 {[%emt 0:00:04]} Rd4 {[%emt 0:00:01]} 45. Kb2 {[%emt 0:00:05]} Rxd5 {[%emt 0:00:01] Black is more active.} 46. Rc3 {[%emt 0:00:06]} (46. a3 $17) 46... f5 {[%emt 0:00:04] Black is clearly better.} 47. gxf5 {[%emt 0:00:02]} gxf5 {[%emt 0:00:01]} 48. Rc8 {[%emt 0:00:04]} Rb7+ {[%emt 0:00:03]} 49. Kc3 {[%emt 0:00:03]} Ra5 {[%emt 0:00:04]} 50. Rd8 {[%emt 0:00:05] Weighted Error Value: White=0.22 (precise) /Black=0.23 (precise)} 0-1

[Event "Romanian Team Blitz Open 2022"]
[Site "Sebes"]
[Date "2022.12.04"]
[Round "4.14"]
[White "Cosma, Ioan"]
[Black "Nevednichy, Vladislav"]
[Result "0-1"]
[ECO "A49"]
[WhiteElo "2368"]
[BlackElo "2499"]
[Annotator "TA"]
[PlyCount "70"]
[EventDate "2022.12.04"]
[EventType "blitz"]
[EventCountry "ROU"]
[SourceTitle "playchess.com"]
[Source "ChessBase"]
[SourceQuality "1"]
[TimeControl "180+2"]

{[%evp 9,70,8,25,12,13,8,12,12,24,23,41,35,35,-80,-31,-39,-45,-107,-99,-106,-116,-150,-135,-345,-123,-118,-129,-161,-126,-133,-131,-134,-135,-358,-359,-354,-382,-361,-360,-363,-356,-348,-340,-348,-355,-463,-453,-457,-444,-470,-435,-610,-596,-628,-628,-619,-617,-628,-602,-643,-633,-593,-562]} 1. d4 {[%emt 0:00:00]} Nf6 {[%emt 0:00:01]} 2. Nf3 {[%emt 0:00:01]} g6 {[%emt 0:00:01]} 3. g3 {[%emt 0:00:04]} Bg7 {[%emt 0:00:01]} 4. Bg2 {[%emt 0:00:01]} O-O {[%emt 0:00:02]} 5. O-O {[%emt 0:00:01]} a5 {[%emt 0:00:01]} 6. b3 {[%emt 0:00:04] A49: 1 d4 Nf6 2 Nf3 g6 3 g3: Anti-King's Indian systems.} a4 {[%emt 0:00:03]} 7. Bb2 {[%emt 0:00:00]} d5 {[%emt 0:00:03]} 8. c4 {[%emt 0:00:07] The position is equal.} Nc6 {[%emt 0:00:05] [#]} 9. e3 $146 {[%emt 0:00:08]} ({Predecessor:} 9. Nbd2 a3 10. Bc3 Ne4 11. Nxe4 dxe4 12. Ne5 Nxe5 13. dxe5 Bf5 14. h3 h5 15. Kh2 {1-0 (44) Sadhwani,R (2609)-Harika,D (2511) Kolkata 2021}) 9... Bf5 {[%emt 0:00:14]} 10. cxd5 {[%emt 0:00:17]} Nxd5 {[%emt 0:00:02]} ({Resist} 10... Qxd5 11. Nc3 Qd7 12. Nxa4 $16 (12. bxa4 Rfd8 $14)) 11. Ne5 {[%emt 0:00:08]} (11. bxa4 $14 Nb6 12. Nc3) 11... Bxe5 {[%emt 0:00:17]} (11... Nxe5 $17 12. dxe5 Nb4) 12. dxe5 $15 {[%emt 0:00:02]} Ndb4 {[%emt 0:00:04] aiming for ...Nc2.} 13. e4 {[%emt 0:02:35]} (13. Qc1 $15) 13... Qxd1 $17 14. Rxd1 {[%emt 0:00:00]} Be6 {[%emt 0:00:12] [#] ...Nc2 is the strong threat.} 15. Nd2 {[%emt 0:00:00]} Rfd8 {[%emt 0:00:10] Hoping for ...axb3.} 16. Bf1 $2 {[%emt 0:00:00]} (16. bxa4 $17 {only move.} Rxa4 17. a3) 16... Nd3 $2 {[%emt 0:00:20]} (16... axb3 $19 {and Black stays clearly on top.} 17. a3 Nc2) 17. Bc3 {[%emt 0:00:00]} Ndxe5 {[%emt 0:00:11] Black is much more active.} 18. Be2 {[%emt 0:00:00]} axb3 {[%emt 0:00:08]} 19. axb3 {[%emt 0:00:00]} Rxa1 {[%emt 0:00:07]} 20. Rxa1 {[%emt 0:00:00]} Nd4 {[%emt 0:00:02]} 21. Kf1 {[%emt 0:00:00] [#]} (21. Bxd4 $17 {is a better defense.} Rxd4 22. Ra2) 21... Bh3+ $19 {[%emt 0:00:10]} (21... Bxb3 $2 22. Bxd4 Rxd4 23. Nxb3 Rxe4 24. Nc5 $16) 22. Ke1 {[%emt 0:00:00]} Nc2+ {[%emt 0:00:03] Pair of Knights!} 23. Kd1 {[%emt 0:00:00]} Nxa1 {[%emt 0:00:02]} 24. Bxa1 {[%emt 0:00:00]} Ng4 {[%emt 0:00:04]} 25. Bxg4 {[%emt 0:00:00]} Bxg4+ {[%emt 0:00:01][%mdl 4096] Endgame KRB-KBN} 26. Kc2 {[%emt 0:00:00]} f6 {[%emt 0:00:05]} 27. f4 {[%emt 0:00:28]} h5 {[%emt 0:00:03] Black is clearly winning.} 28. Bc3 {[%emt 0:00:00]} Kf7 {[%emt 0:00:07]} 29. Nc4 {[%emt 0:00:00]} b6 {[%emt 0:00:05]} 30. Ne3 {[%emt 0:00:00]} (30. Nb2 $142) 30... Bf3 {[%emt 0:00:01]} 31. e5 {[%emt 0:00:00]} Be4+ {[%emt 0:00:02]} 32. Kb2 {[%emt 0:00:00]} Rd3 {[%emt 0:00:03]} 33. Nc4 {[%emt 0:00:00]} Rf3 {[%emt 0:00:04]} 34. Nd2 {[%emt 0:00:00][%cal Od2f3]} Rf2 {[%emt 0:00:01]} 35. exf6 {[%emt 0:00:00]} exf6 {[%emt 0:00:01] Weighted Error Value: White=0.48/Black=0.16 (very precise)} 0-1

[Event "Romanian Team Blitz Open 2022"]
[Site "Sebes"]
[Date "2022.12.04"]
[Round "4.15"]
[White "Stoleriu, George"]
[Black "Itkis, Boris"]
[Result "1-0"]
[ECO "B07"]
[WhiteElo "2389"]
[BlackElo "2343"]
[Annotator "TA"]
[PlyCount "47"]
[EventDate "2022.12.04"]
[EventType "blitz"]
[EventCountry "ROU"]
[SourceTitle "playchess.com"]
[Source "ChessBase"]
[SourceQuality "1"]
[TimeControl "180+2"]

{[%evp 10,47,39,43,46,38,124,34,51,41,22,0,45,-5,18,0,16,-29,25,22,68,51,60,61,129,80,68,61,65,6,35,33,39,35,60,33,123,117,646,627]} 1. e4 {[%emt 0:03:04]} d6 {[%emt 0:03:04]} 2. d4 {[%emt 0:00:02]} Nf6 3. Nc3 e5 4. dxe5 {[%emt 0:00:04]} dxe5 5. Qxd8+ {[%emt 0:00:02]} Kxd8 6. Bc4 Ke8 {now scores much better than the old 6...Be6. B07: Pirc Defence: Miscellaneous Systems.} 7. Nf3 {[%emt 0:00:04]} Nbd7 {[%emt 0:00:12]} (7... Bd6 $14) 8. Bd2 {[%emt 0:00:02]} (8. Ng5 $16) 8... Bd6 {[%emt 0:00:02] White is slightly better.} 9. O-O-O {[%emt 0:00:02]} a6 {[#]} 10. a4 $146 {[%emt 0:00:02] Inhibits b5.} ({Predecessor:} 10. Rhe1 b5 11. Bb3 Nc5 12. Nh4 b4 13. Nd5 Nxb3+ 14. cxb3 Nxd5 15. exd5 Kd8 16. Re4 {½-½ (46) Dujava,J (1853)-Klemanic,E (2179) Kosice 2014}) 10... b6 {[%emt 0:00:04][%cal Ob6b5]} (10... b5 $5 {[%cal Rb5c4]} 11. Ba2 (11. axb5 axb5 12. Bxb5 Nxe4 $15) 11... Bb7 $11) 11. h3 {[%emt 0:00:02]} ({White should play} 11. Kb1 $14) 11... Bb7 {[%emt 0:00:02]} (11... b5 $5 {[%cal Rb5c4]} 12. Bd3 (12. axb5 axb5 13. Bxb5 Ra1+ 14. Nb1 Nxe4 $11) 12... b4 $11) 12. Rhe1 {[%emt 0:00:02]} h6 {[%emt 0:00:02]} 13. Ng1 {[%emt 0:00:02]} Nc5 {[%emt 0:00:02]} (13... b5 $142 14. Bb3 Nc5) 14. f3 $11 {[%emt 0:00:02]} Ne6 {[%emt 0:00:02]} (14... Kf8 $11 {was preferrable.}) 15. Nge2 {[%emt 0:00:02]} Bc5 {[%emt 0:00:02]} 16. Nd5 {[%emt 0:00:02]} Nh5 {[%emt 0:00:02]} (16... Nd7 $14) 17. g4 {[%emt 0:00:02]} (17. Bc3 $142) 17... Nf6 $16 {[%emt 0:00:02]} 18. Nxf6+ (18. Bc3 {is more complex.} b5 19. axb5 axb5 20. Bxb5+ c6 21. b4) 18... gxf6 19. c3 {[%emt 0:00:04] Inhibits b5.} ({White should try} 19. Rh1 $14) 19... Ng5 {[%emt 0:00:04]} 20. Rf1 {[%emt 0:00:02]} Nxh3 {[%emt 0:00:02]} 21. Ng3 {[%emt 0:00:02]} Ng5 {[%emt 0:00:02]} 22. Nf5 {[%emt 0:00:02][%mdl 1024] White has compensation.} Bc8 {[%emt 0:00:02]} (22... Rd8 $14) 23. Bd5 {[%emt 0:00:02] White is much more active. The black rooks are badly placed.} Rb8 $2 {[%emt 0:00:02][%mdl 8192] [#]} (23... Bxf5 $16 24. Bxa8 Bd7) 24. Bxg5 {[%emt 0:00:02] Weighted Error Value: White=0.27 (precise) /Black=0.68} 1-0

[Event "Romanian Team Blitz Open 2022"]
[Site "Sebes"]
[Date "2022.12.04"]
[Round "4.16"]
[White "Bulau, Andrei-Cristian"]
[Black "Zubcu, Vlad-George"]
[Result "1-0"]
[ECO "A85"]
[WhiteElo "2154"]
[BlackElo "2135"]
[Annotator "TA"]
[PlyCount "63"]
[EventDate "2022.12.04"]
[EventType "blitz"]
[EventCountry "ROU"]
[SourceTitle "playchess.com"]
[Source "ChessBase"]
[SourceQuality "1"]
[TimeControl "180+2"]

{[%evp 15,63,29,33,18,47,-10,8,0,13,-23,-16,-23,0,0,0,-12,29,0,37,43,111,111,113,102,123,101,122,130,89,108,191,179,257,254,262,235,505,517,540,544,668,648,641,592,552,536,5365,5357,29986,29987]} 1. d4 {[%emt 0:00:01]} d5 {[%emt 0:00:00]} 2. c4 {[%emt 0:00:01]} e6 {[%emt 0:00:01]} 3. Nc3 {[%emt 0:00:01]} c6 {[%emt 0:00:00]} 4. e3 {[%emt 0:00:04]} f5 {[%emt 0:00:01]} 5. Nf3 {[%emt 0:00:02]} Nf6 {[%emt 0:00:01]} 6. Bd3 {[%emt 0:00:04]} Bd6 {[%emt 0:00:03]} 7. O-O {[%emt 0:00:02]} O-O {[%emt 0:00:02]} 8. b3 {[%emt 0:00:01]} Ne4 {[%emt 0:00:05]} 9. Qc2 {[%emt 0:00:02] [#] A85: Dutch Defence: 2 c4 Nf6 3 Nc3.} a5 $146 {[%emt 0:00:08]} ({Predecessor:} 9... Nd7 10. Bb2 b6 11. Ne2 Bb7 12. Rac1 Rc8 13. Rfd1 Qe8 14. Ne5 Nxe5 15. dxe5 Bb8 16. b4 Qh5 {0-1 (45) Blanco Ronquillo,H (2442)-Dushyant,S (2391) Chess.com INT 2022}) 10. a4 {[%emt 0:00:02]} (10. Bb2 $14) 10... Qe7 {[%emt 0:00:14]} (10... Na6 $5 {[%cal Ra6b4]} 11. Na2 b6 $11) 11. Bb2 {[%emt 0:00:14] The position is equal.} Na6 {[%emt 0:00:01]} 12. Ne5 {[%emt 0:00:05]} Nb4 {[%emt 0:00:04]} 13. Qd1 {[%emt 0:00:00]} c5 {[%emt 0:00:57]} 14. Nb5 {[%emt 0:00:17]} Bxe5 {[%emt 0:00:19]} 15. dxe5 {[%emt 0:00:02]} Bd7 {[%emt 0:00:02]} 16. Bxe4 {[%emt 0:00:22]} (16. cxd5 {with more complications.} exd5 17. f3 Ng5 18. Be2) 16... Bxb5 {[%emt 0:00:22]} 17. Bxd5 {[%emt 0:00:10]} (17. cxd5 $2 Bxf1 18. d6 Qd7 $19) 17... exd5 {[%emt 0:00:07]} (17... Be8 $14) 18. cxb5 $16 {[%emt 0:00:10]} Rfd8 {[%emt 0:00:28]} 19. Qe2 {[%emt 0:00:01]} d4 {[%emt 0:00:13]} 20. exd4 {[%emt 0:00:01]} cxd4 {[%emt 0:00:01]} 21. Qc4+ {[%emt 0:00:13]} Kh8 {[%emt 0:00:01] [#] aiming for ...Rac8.} 22. Rac1 {[%emt 0:00:03]} (22. Bxd4 Rac8 23. Bb6 Rxc4 24. Bxd8 Qxd8 $15) 22... Qxe5 {[%emt 0:00:09]} (22... d3 $16) 23. Rfd1 $18 {[%emt 0:00:00][%cal Rb2d4]} Qd5 {[%emt 0:00:24]} (23... Na2 $142) 24. Bxd4 {[%emt 0:00:17][%cal Bb2d4,Bd4b6,Bb6d8,Bd8a5][%mdl 32]} (24. Qxd4 Qxd4 25. Rxd4 (25. Bxd4 Nd5 $16) 25... Rxd4 26. Bxd4 Kg8 $18) (24. Rxd4 Qxc4 25. Rcxc4 Nd5 $18) 24... Qxc4 {[%emt 0:00:02]} 25. bxc4 {[%emt 0:00:01] And now Bb6 would win.} ({But not} 25. Rxc4 $6 Rd7 26. f3 Kg8 $16) 25... Rac8 $2 {[%emt 0:00:04]} (25... Kg8 26. Bb6 Rd3) 26. Bb6 $1 {[%emt 0:00:05][%csl LRa5,LRd8]} Rxd1+ {[%emt 0:00:02]} 27. Rxd1 {[%emt 0:00:01] KRB-KRN} h6 {[%emt 0:00:01]} 28. Rd8+ {[%emt 0:00:04]} ({Not} 28. Bxa5 Rxc4 29. Rd8+ Kh7 $18) 28... Rxd8 {[%emt 0:00:03]} 29. Bxd8 {[%emt 0:00:01]} Nd3 {[%emt 0:00:01] Inhibits c5.} 30. Bxa5 {[%emt 0:00:07]} Nb2 {[%emt 0:00:01]} 31. c5 {[%emt 0:00:03][%cal Bc4c5,Bc5c6][%mdl 32] [#] White threatens c6 and mate.} Nxa4 {[%emt 0:00:03]} 32. c6 {[%emt 0:00:01] Weighted Error Value: White=0.11 (very precise) /Black=0.62} 1-0